Workbook

Sheet 1
A1: Příloha č. 1
A2: Položkový rozpočet B71
A3: Popis | B3: Rozměry | C3: ks | D3: cena / ks bez DPH | E3: DPH / ks | F3: cena / ks bez DPH | G3: cena celkem bez DPH | H3: DPH celkem | I3: cena celkem včetně DPH | J3: DPH | K3: Durčáková | L3: CELKEM
A4: Nábytek | B4: dxšxv | K4: 71 | L4: ks | M4: cena bez DPH
A5: stůl pracovní, vrchní deska lamino tl. 25 mm, stěny lamino, zavětrávací deska, kabelové úchytky, průchodky, pojezd 900x700 | B5: 2200x750x750 | C5: 2 | D5: 2661 | E5: =J5*D5 -> 558.81 | G5: =C5*D5 -> 5322 | H5: =C5*E5 -> 1117.62 | I5: =G5+H5 -> 6439.62 | J5: 0.21 | K5: 1 | L5: 1 | M5: =F5*L5 -> 0
A6: stůl jednací na centrální noze, vrchní deska lamino tl. 25 mm | B6: 1950x750x750 | K6: 1 | L6: 1 | M6: 0
A7: kontejner 4-zásuvkový, tužkovník, na kolečkách, centrální zámek | B7: 428x550x613 | C7: 10 | D7: 3714 | E7: 779.94 | G7: =C7*D7 -> 37140 | H7: =C7*E7 -> 7799.4 | I7: =G7+H7 -> 44939.4 | J7: 0.21 | K7: 2 | L7: 2 | M7: 0
A8: skříň šanonová, plná, zámek, na soklu | B8: 800x400x1880 | C8: 15 | D8: 3729 | E8: 783.09 | G8: =C8*D8 -> 55935 | H8: =C8*E8 -> 11746.35 | I8: =G8+H8 -> 67681.35 | J8: 0.21 | K8: 2 | L8: 2 | M8: 0
A9: skříň šatní 1/2 polic, 1/2 šatní tyč, zámek, na soklu | B9: 800x600x1880 | C9: 4 | D9: 4498 | E9: 944.58 | G9: =C9*D9 -> 17992 | H9: =C9*E9 -> 3778.32 | I9: =G9+H9 -> 21770.32 | J9: 0.21 | K9: 1 | L9: 1 | M9: 0
A10: skříň s jednou policí nízká, vrchní deska tl. 25 mm, plná, zámek, na soklu | B10: 700x400x750 | K10: 3 | L10: 3 | M10: 0
A11: Cena vč. dopravy, montáže a ostatních režijních nákladů | M11: =SUM(M5:M10) -> 0
M12: DPH 21 %
L13: celkem vč. DPH | M13: =M11*1.21 -> 0

Sheet List1
